{"text_format":"1","workbook":"xlsx","n_sheets":5,"sheets":["Prvi_list","Podatki","Naprave","NAVODILA","sifrant"],"not_rendered":{"charts":0,"images":2,"macros":1,"external_links":0,"defined_names":14,"comments":1,"pivot_tables":0},"unopened":[],"bounds":{"document_bytes":16777216,"sheet_cells":100000,"rows_first":2000,"rows_last":500,"rows_between":2000,"halvings":0,"cell_chars":16384,"cell_head_chars":4096},"cells_cut":0,"cells_raw":0,"read":"whole","date_system":"1900"}

{"sheet":"Prvi_list","index":0,"n_rows":25,"n_cols":1,"rows_kept":25,"cut":false,"hidden":false,"merged":[]}
[]
[]
[]
[]
[]
[]
[]
[]
[]
[]
[]
[]
[]
[]
[]
[]
["POROČILO O EVIDENCI MALIH KOMUNALNIH ČISTILNIH NAPRAV (za naprave do 50 PE)"]
["po 27 in 30 členu Uredbe o odvajanju in čiščenju komunalne odpadne vode                    (Uradni list RS, št. 98/15, 76/17 in 81/19)"]
["NA PODROČJU IZVAJANJA JAVNE SLUŽBE ODVAJANJA IN ČIŠČENJA KOMUNALNIH ODPADNIH VOD IZVAJALCA"]
[]
[{"$f":"IF(Podatki!C6<>\"\",Podatki!C6,\"\")","v":""}]
[]
[]
[]
[{"$f":"IF(Podatki!$C$3=\"\",\"\",\"Podatki za leto \" & Podatki!$C$3)","v":"Podatki za leto 2024"}]

{"sheet":"Podatki","index":1,"n_rows":17,"n_cols":3,"rows_kept":17,"cut":false,"hidden":false,"merged":[[6,0,6,2],[0,0,0,4],[2,0,2,1],[5,0,5,1],[4,0,4,3],[9,0,9,1],[7,0,7,1],[8,0,8,1],[16,0,16,1],[12,0,12,1],[13,0,13,1],[14,0,14,1],[15,0,15,1],[10,0,10,1],[11,0,11,1]]}
["PODATKI O IZVAJALCU JAVNE SLUŽBE ODVAJANJA IN ČIŠČENJA ODPADNIH VOD IN UPRAVLJAVCIH MALIH KOMUNALNIH ČISTILNIH NAPRAV"]
[]
["ZA LETO",null,2024]
[]
["1. PODATKI O IZVAJALCU JAVNE SLUŽBE ODVAJANJA IN ČIŠČENJA ODPADNIH VOD"]
["Naziv izvajalca javne službe:"]
[]
["Naselje:"]
["Ulica in hišna številka:"]
["Poštna številka:"]
["Ime pošte:"]
["Identifikacijska številka za DDV:"]
["Matična številka:"]
["Kontaktna oseba:"]
["telefon:"]
["fax:"]
["elektronski naslov:"]

{"sheet":"Naprave","index":2,"n_rows":4,"n_cols":14,"rows_kept":4,"cut":false,"hidden":false,"merged":[[0,0,0,5],[1,11,1,13],[1,8,1,9],[1,0,1,7]]}
["3. PODATKI O MALIH KOMUNALNIH ČISTILNIH NAPRAVAH (MKČN)",null,null,null,null,null,4]
["OSNOVNI PODATKI O NAPRAVI",null,null,null,null,null,null,null,"Lokacija iztoka \n(Transverzalna (prečna) Mercatorjeva koordinata)",null,"Kam se odvaja čiščena odpadna voda","Prve meritve / pregled MKČN "]
["ID MKČN","Ime MKČN","Naslov MKČN                (naselje/ulica)","Naslov MKČN (hišna št.)","Pošta MKČN","Zmogljivost (PE)","Št. Priključenih Prebivalcev","ID Aglomeracije","Koordinata e","Koordinata n","Odvajanje kam","Ali deluje skladno (DA/NE)","Datum ","Ali MKČN ne deluje več ?"]
["MKCN1"]

{"sheet":"NAVODILA","index":3,"n_rows":32,"n_cols":1,"rows_kept":32,"cut":false,"hidden":false,"merged":[]}
["NAVODILA ZA DELO Z OBRAZCEM"]
[]
["1. Datoteko je treba takoj shraniti pod novim imenom MKCN24_naziv.xlsm."]
["   Za naziv vpišete naziv izvajalca javne službe odvajanja in čiščenja."]
[]
["2. Datoteka je sestavljena iz več listov (Sheet) in sicer:"]
["·    Prvi_list, "]
["·    Podatki"]
["·    Naprave"]
["·    Navodilo "]
[]
["3. V Prvi_list, ki je obarvan modro, se nič ne izpolnjuje."]
[]
["4. Izpolniti je treba samo list Podatki in list Naprave:"]
["    Na listu Podatki izpolnite:"]
["    Podatke o izvajalcu javne službe odvajanja in čiščenja odpadnih vod"]
["·    izpolnite le sivo obarvana polja;"]
[]
["    Na listu Naprave izpolnite:"]
["    Podatke o posamezni mali komunalni čistilni napravi (MKČN)"]
["·    s klikom na gumb ''VPIŠI NAPRAVO'' se ustvari nova vrstica kamor vpišete podatke o posamezni MKČN;"]
["·    za vnos dodatnih MKČN ponovno uporabite gumb ''VPIŠI NAPRAVO'';"]
["·    ob vsaki uporabi gumba ''VPIŠI NAPRAVO'' se izvrši kontrola podatkov zadnje vpisane MKČN;"]
["·    v primeru napake lahko posamezni vnos podatkov izbrišete s klikom na gumb \"IZBRIŠI ZADNJO NAPRAVO\";"]
["·    večina naslovnih celic  tabele je opremljena z opombami, ki podrobneje opisujejo, kaj je potrebno v posamezno celico vpisati;"]
["·    podatki o prvih meritvah / pregledu MKČN niso predizpolnjeni in jih je potrebno izpolniti (vpišete datume izvedbe prvih meritev / pregledov. Vpisujete le datume pregledov za tiste MKČN, na katerih so se pregledi izvedli v letu za katerega poročate;"]
[]
["Zaradi varovanja osebnih podatkov, vas prosimo, da vsa imena MKČN, ki so hkrati osebna imena spremenite oz. šifrirate. Predlagamo, da npr. dosedanje ime MKČN »Janez Novak« spremenite v naslov »Barje 55« ali pa uporabite svoje poimenovanje oz. šifro."]
[]
["V evidenco vključite (vpišite) le tiste male komunalne čistilne naprave (do 50 PE) katere obratujejo ali so prenehale obratovati v letu za katero poročate. Naprav, ki še niso pričele z obratovanjem ne vključujte v evidenco."]
[]
["5. Ko so podatki vpisani, datoteko shranite, da jo boste imeli za nadaljnjo evidenco, hkrati pa jo morate, samo v elektronski obliki poslati, najpozneje do 31.3.2025, na Agencijo RS za okolje na naslov: gp.arso-vode@gov.si pri čemer se sklicujte na številko 35439-3/2025. V elektronsko sporočilo pod naziv zadeve navedite: naziv izvajalca javne službe odvajanja in čiščenja - MKČN pod 50 PE."]

{"sheet":"sifrant","index":4,"n_rows":554,"n_cols":9,"rows_kept":554,"cut":false,"hidden":false,"merged":[]}
["Poštna številka","Naziv pošte",null,null,"opis",null,"Odvajanje kam"]
[1000,"Ljubljana",{"$f":"A2&\" \"&B2","v":"1000 Ljubljana"}]
[1001,"Ljubljana",{"$f":"A3&\" \"&B3","v":"1001 Ljubljana"},null,"predelana greznica - SIST EN 12566-1 in 4",null,"V tla",null,"DA"]
[1210,"Ljubljana - Šentvid","1210 Ljubljana - Šentvid",null,"sestavljena ČN - SIST EN 12566-3",null,"Vodotok",null,"NE"]
[1211,"Ljubljana - Šmartno","1211 Ljubljana - Šmartno",null,"netipska MKČN"]
[1215,"Medvode","1215 Medvode"]
[1216,"Smlednik","1216 Smlednik"]
[1217,"Vodice","1217 Vodice"]
[1218,"Komenda","1218 Komenda"]
[1219,"Laze v Tuhinju","1219 Laze v Tuhinju"]
[1221,"Motnik","1221 Motnik"]
[1222,"Trojane","1222 Trojane"]
[1223,"Blagovica","1223 Blagovica"]
[1225,"Lukovica","1225 Lukovica"]
[1230,"Domžale","1230 Domžale"]
[1231,"Ljubljana - Črnuče","1231 Ljubljana - Črnuče"]
[1233,"Dob","1233 Dob"]
[1234,"Mengeš","1234 Mengeš"]
[1235,"Radomlje","1235 Radomlje"]
[1236,"Trzin","1236 Trzin"]
[1241,"Kamnik","1241 Kamnik"]
[1242,"Stahovica","1242 Stahovica"]
[1251,"Moravče","1251 Moravče"]
[1252,"Vače","1252 Vače"]
[1260,"Ljubljana - Polje","1260 Ljubljana - Polje"]
[1261,"Ljubljana - Dobrunje","1261 Ljubljana - Dobrunje"]
[1262,"Dol pri Ljubljani","1262 Dol pri Ljubljani"]
[1270,"Litija","1270 Litija"]
[1272,"Polšnik","1272 Polšnik"]
[1273,"Dole pri Litiji","1273 Dole pri Litiji"]
[1274,"Gabrovka","1274 Gabrovka"]
[1275,"Šmartno pri Litiji","1275 Šmartno pri Litiji"]
[1276,"Primskovo ","1276 Primskovo "]
[1281,"Kresnice","1281 Kresnice"]
[1282,"Sava","1282 Sava"]
[1290,"Grosuplje","1290 Grosuplje"]
[1291,"Škofljica","1291 Škofljica"]
[1292,"Ig","1292 Ig"]
[1293,"Šmarje - Sap","1293 Šmarje - Sap"]
[1294,"Višnja Gora","1294 Višnja Gora"]
[1295,"Ivančna Gorica","1295 Ivančna Gorica"]
[1296,"Šentvid pri Stični","1296 Šentvid pri Stični"]
[1301,"Krka","1301 Krka"]
[1303,"Zagradec","1303 Zagradec"]
[1310,"Ribnica","1310 Ribnica"]
[1311,"Turjak","1311 Turjak"]
[1312,"Videm - Dobrepolje","1312 Videm - Dobrepolje"]
[1313,"Struge","1313 Struge"]
[1314,"Rob","1314 Rob"]
[1315,"Velike Lašče","1315 Velike Lašče"]
[1316,"Ortnek","1316 Ortnek"]
[1317,"Sodražica","1317 Sodražica"]
[1318,"Loški Potok","1318 Loški Potok"]
[1319,"Draga","1319 Draga"]
[1330,"Kočevje","1330 Kočevje"]
[1331,"Dolenja vas","1331 Dolenja vas"]
[1332,"Stara Cerkev","1332 Stara Cerkev"]
[1336,"Vas","1336 Vas"]
[1337,"Osilnica","1337 Osilnica"]
[1338,"Kočevska Reka","1338 Kočevska Reka"]
[1351,"Brezovica pri Ljubljani","1351 Brezovica pri Ljubljani"]
[1352,"Preserje","1352 Preserje"]
[1353,"Borovnica","1353 Borovnica"]
[1354,"Horjul","1354 Horjul"]
[1355,"Polhov Gradec","1355 Polhov Gradec"]
[1356,"Dobrova","1356 Dobrova"]
[1357,"Notranje Gorice",{"$f":"A67&\" \"&B67","v":"1357 Notranje Gorice"}]
[1360,"Vrhnika","1360 Vrhnika"]
[1370,"Logatec","1370 Logatec"]
[1372,"Hotedršica","1372 Hotedršica"]
[1373,"Rovte","1373 Rovte"]
[1380,"Cerknica","1380 Cerknica"]
[1381,"Rakek","1381 Rakek"]
[1382,"Begunje pri Cerknici","1382 Begunje pri Cerknici"]
[1384,"Grahovo","1384 Grahovo"]
[1385,"Nova vas","1385 Nova vas"]
[1386,"Stari trg pri Ložu","1386 Stari trg pri Ložu"]
[1410,"Zagorje ob Savi","1410 Zagorje ob Savi"]
[1411,"Izlake","1411 Izlake"]
[1412,"Kisovec","1412 Kisovec"]
[1413,"Čemšenik","1413 Čemšenik"]
[1414,"Podkum","1414 Podkum"]
[1420,"Trbovlje","1420 Trbovlje"]
[1423,"Dobovec","1423 Dobovec"]
[1430,"Hrastnik","1430 Hrastnik"]
[1431,"Dol pri Hrastniku","1431 Dol pri Hrastniku"]
[1432,"Zidani Most","1432 Zidani Most"]
[1433,"Radeče","1433 Radeče"]
[1434,"Loka pri Zidanem Mostu","1434 Loka pri Zidanem Mostu"]
[1500,"Ljubljana","1500 Ljubljana"]
[1501,"Ljubljana","1501 Ljubljana"]
[1502,"Ljubljana","1502 Ljubljana"]
[1503,"Ljubljana","1503 Ljubljana"]
[1504,"Ljubljana","1504 Ljubljana"]
[1505,"Ljubljana","1505 Ljubljana"]
[1506,"Ljubljana","1506 Ljubljana"]
[1507,"Ljubljana","1507 Ljubljana"]
[1508,"Ljubljana","1508 Ljubljana"]
[1509,"Ljubljana","1509 Ljubljana"]
[1510,"Ljubljana","1510 Ljubljana"]
[1511,"Ljubljana","1511 Ljubljana"]
[1512,"Ljubljana","1512 Ljubljana"]
[1513,"Ljubljana","1513 Ljubljana"]
[1514,"Ljubljana","1514 Ljubljana"]
[1516,"Ljubljana","1516 Ljubljana"]
[1517,"Ljubljana","1517 Ljubljana"]
[1518,"Ljubljana","1518 Ljubljana"]
[1519,"Ljubljana","1519 Ljubljana"]
[1520,"Ljubljana","1520 Ljubljana"]
[1521,"Ljubljana","1521 Ljubljana"]
[1522,"Ljubljana","1522 Ljubljana"]
[1523,"Ljubljana","1523 Ljubljana"]
[1524,"Ljubljana","1524 Ljubljana"]
[1525,"Ljubljana","1525 Ljubljana"]
[1526,"Ljubljana","1526 Ljubljana"]
[1527,"Ljubljana","1527 Ljubljana"]
[1528,"Ljubljana","1528 Ljubljana"]
[1529,"Ljubljana","1529 Ljubljana"]
[1532,"Ljubljana","1532 Ljubljana"]
[1533,"Ljubljana","1533 Ljubljana"]
[1534,"Ljubljana","1534 Ljubljana"]
[1535,"Ljubljana","1535 Ljubljana"]
[1536,"Ljubljana","1536 Ljubljana"]
[1537,"Ljubljana","1537 Ljubljana"]
[1538,"Ljubljana","1538 Ljubljana"]
[1540,"Ljubljana","1540 Ljubljana"]
[1542,"Ljubljana","1542 Ljubljana"]
[1543,"Ljubljana","1543 Ljubljana"]
[1544,"Ljubljana","1544 Ljubljana"]
[1545,"Ljubljana","1545 Ljubljana"]
[1546,"Ljubljana",{"$f":"A131&\" \"&B131","v":"1546 Ljubljana"}]
[1547,"Ljubljana","1547 Ljubljana"]
[1550,"Ljubljana","1550 Ljubljana"]
[1600,"Ljubljana","1600 Ljubljana"]
[1603,"Ljubljana","1603 Ljubljana"]
[2000,"Maribor - dostava","2000 Maribor - dostava"]
[2001,"Maribor - poštni predali","2001 Maribor - poštni predali"]
[2201,"Zgornja Kungota","2201 Zgornja Kungota"]
[2204,"Miklavž na Dravskem polju","2204 Miklavž na Dravskem polju"]
[2205,"Starše","2205 Starše"]
[2206,"Marjeta na Dravskem polju","2206 Marjeta na Dravskem polju"]
[2208,"Pohorje","2208 Pohorje"]
[2211,"Pesnica pri Mariboru","2211 Pesnica pri Mariboru"]
[2212,"Šentilj v Slovenskih goricah","2212 Šentilj v Slovenskih goricah"]
[2213,"Zgornja Velka","2213 Zgornja Velka"]
[2214,"Sladki Vrh","2214 Sladki Vrh"]
[2215,"Ceršak","2215 Ceršak"]
[2221,"Jarenina","2221 Jarenina"]
[2222,"Jakobski Dol","2222 Jakobski Dol"]
[2223,"Jurovski Dol","2223 Jurovski Dol"]
[2229,"Malečnik","2229 Malečnik"]
[2230,"Lenart v Slovenskih goricah","2230 Lenart v Slovenskih goricah"]
[2231,"Pernica","2231 Pernica"]
[2232,"Voličina","2232 Voličina"]
[2233,"Sv. Ana v Slovenskih goricah","2233 Sv. Ana v Slovenskih goricah"]
[2234,"Benedikt","2234 Benedikt"]
[2235,"Sv. Trojica v Slovenskih goricah","2235 Sv. Trojica v Slovenskih goricah"]
[2236,"Cerkvenjak","2236 Cerkvenjak"]
[2241,"Spodnji Duplek","2241 Spodnji Duplek"]
[2242,"Zgornja Korena","2242 Zgornja Korena"]
[2250,"Ptuj","2250 Ptuj"]
[2252,"Dornava","2252 Dornava"]
[2253,"Destrnik","2253 Destrnik"]
[2254,"Trnovska vas","2254 Trnovska vas"]
[2255,"Vitomarci","2255 Vitomarci"]
[2256,"Juršinci","2256 Juršinci"]
[2257,"Polenšak","2257 Polenšak"]
[2258,"Sveti Tomaž","2258 Sveti Tomaž"]
[2259,"Ivanjkovci","2259 Ivanjkovci"]
[2270,"Ormož","2270 Ormož"]
[2272,"Gorišnica","2272 Gorišnica"]
[2273,"Podgorci","2273 Podgorci"]
[2274,"Velika Nedelja","2274 Velika Nedelja"]
[2275,"Miklavž pri Ormožu","2275 Miklavž pri Ormožu"]
[2276,"Kog","2276 Kog"]
[2277,"Središče ob Dravi","2277 Središče ob Dravi"]
[2281,"Markovci","2281 Markovci"]
[2282,"Cirkulane","2282 Cirkulane"]
[2283,"Zavrč","2283 Zavrč"]
[2284,"Videm pri Ptuju","2284 Videm pri Ptuju"]
[2285,"Zgornji Leskovec","2285 Zgornji Leskovec"]
[2286,"Podlehnik","2286 Podlehnik"]
[2287,"Žetale","2287 Žetale"]
[2288,"Hajdina","2288 Hajdina"]
[2289,"Stoperce","2289 Stoperce"]
[2310,"Slovenska Bistrica","2310 Slovenska Bistrica"]
[2311,"Hoče","2311 Hoče"]
[2312,"Orehova vas","2312 Orehova vas"]
[2313,"Fram","2313 Fram"]
[2314,"Zgornja Polskava","2314 Zgornja Polskava"]
[2315,"Šmartno na Pohorju","2315 Šmartno na Pohorju"]
[2316,"Zgornja Ložnica","2316 Zgornja Ložnica"]
[2317,"Oplotnica","2317 Oplotnica"]
[2318,"Laporje","2318 Laporje"]
[2319,"Poljčane",{"$f":"A195&\" \"&B195","v":"2319 Poljčane"}]
[2321,"Makole","2321 Makole"]
[2322,"Majšperk","2322 Majšperk"]
[2323,"Ptujska Gora","2323 Ptujska Gora"]
[2324,"Lovrenc na Dravskem polju","2324 Lovrenc na Dravskem polju"]
[2325,"Kidričevo","2325 Kidričevo"]
[2326,"Cirkovce","2326 Cirkovce"]
[2327,"Rače","2327 Rače"]
[2331,"Pragersko","2331 Pragersko"]
[2341,"Limbuš","2341 Limbuš"]
[2342,"Ruše","2342 Ruše"]
[2343,"Fala","2343 Fala"]
[2344,"Lovrenc na Pohorju","2344 Lovrenc na Pohorju"]
[2345,"Bistrica ob Dravi","2345 Bistrica ob Dravi"]
[2351,"Kamnica","2351 Kamnica"]
[2352,"Selnica ob Dravi","2352 Selnica ob Dravi"]
[2353,"Sv. Duh na Ostrem Vrhu","2353 Sv. Duh na Ostrem Vrhu"]
[2354,"Bresternica","2354 Bresternica"]
[2360,"Radlje ob Dravi","2360 Radlje ob Dravi"]
[2361,"Ožbalt","2361 Ožbalt"]
[2362,"Kapla","2362 Kapla"]
[2363,"Podvelka","2363 Podvelka"]
[2364,"Ribnica na Pohorju","2364 Ribnica na Pohorju"]
[2365,"Vuhred","2365 Vuhred"]
[2366,"Muta","2366 Muta"]
[2367,"Vuzenica","2367 Vuzenica"]
[2370,"Dravograd","2370 Dravograd"]
[2371,"Trbonje","2371 Trbonje"]
[2372,"Libeliče","2372 Libeliče"]
[2373,"Šentjanž pri Dravogradu","2373 Šentjanž pri Dravogradu"]
[2380,"Slovenj Gradec","2380 Slovenj Gradec"]
[2381,"Podgorje pri Slovenj Gradcu","2381 Podgorje pri Slovenj Gradcu"]
[2382,"Mislinja","2382 Mislinja"]
[2383,"Šmartno pri Slovenj Gradcu","2383 Šmartno pri Slovenj Gradcu"]
[2390,"Ravne na Koroškem","2390 Ravne na Koroškem"]
[2391,"Prevalje","2391 Prevalje"]
[2392,"Mežica","2392 Mežica"]
[2393,"Črna na Koroškem","2393 Črna na Koroškem"]
[2394,"Kotlje","2394 Kotlje"]
[2500,"Maribor","2500 Maribor"]
[2501,"Maribor","2501 Maribor"]
[2502,"Maribor","2502 Maribor"]
[2503,"Maribor","2503 Maribor"]
[2504,"Maribor","2504 Maribor"]
[2505,"Maribor","2505 Maribor"]
[2506,"Maribor","2506 Maribor"]
[2507,"Maribor","2507 Maribor"]
[2508,"Maribor","2508 Maribor"]
[2509,"Maribor","2509 Maribor"]
[2600,"Maribor","2600 Maribor"]
[2603,"Maribor","2603 Maribor"]
[3000,"Celje - dostava","3000 Celje - dostava"]
[3001,"Celje - poštni predali","3001 Celje - poštni predali"]
[3201,"Šmartno v Rožni dolini","3201 Šmartno v Rožni dolini"]
[3202,"Ljubečna","3202 Ljubečna"]
[3203,"Nova Cerkev","3203 Nova Cerkev"]
[3204,"Dobrna","3204 Dobrna"]
[3205,"Vitanje","3205 Vitanje"]
[3206,"Stranice","3206 Stranice"]
[3210,"Slovenske Konjice","3210 Slovenske Konjice"]
[3211,"Škofja vas","3211 Škofja vas"]
[3212,"Vojnik","3212 Vojnik"]
[3213,"Frankolovo","3213 Frankolovo"]
[3214,"Zreče","3214 Zreče"]
[3215,"Loče",{"$f":"A259&\" \"&B259","v":"3215 Loče"}]
[3220,"Štore","3220 Štore"]
[3221,"Teharje","3221 Teharje"]
[3222,"Dramlje","3222 Dramlje"]
[3223,"Loka pri Žusmu","3223 Loka pri Žusmu"]
[3224,"Dobje pri Planini","3224 Dobje pri Planini"]
[3225,"Planina pri Sevnici","3225 Planina pri Sevnici"]
[3230,"Šentjur","3230 Šentjur"]
[3231,"Grobelno","3231 Grobelno"]
[3232,"Ponikva","3232 Ponikva"]
[3233,"Kalobje","3233 Kalobje"]
[3240,"Šmarje pri Jelšah","3240 Šmarje pri Jelšah"]
[3241,"Podplat","3241 Podplat"]
[3250,"Rogaška Slatina","3250 Rogaška Slatina"]
[3252,"Rogatec","3252 Rogatec"]
[3253,"Pristava pri Mestinju","3253 Pristava pri Mestinju"]
[3254,"Podčetrtek","3254 Podčetrtek"]
[3255,"Buče","3255 Buče"]
[3256,"Bistrica ob Sotli","3256 Bistrica ob Sotli"]
[3257,"Podsreda","3257 Podsreda"]
[3260,"Kozje","3260 Kozje"]
[3261,"Lesično","3261 Lesično"]
[3262,"Prevorje","3262 Prevorje"]
[3263,"Gorica pri Slivnici","3263 Gorica pri Slivnici"]
[3264,"Sveti Štefan","3264 Sveti Štefan"]
[3270,"Laško","3270 Laško"]
[3271,"Šentrupert","3271 Šentrupert"]
[3272,"Rimske Toplice","3272 Rimske Toplice"]
[3273,"Jurklošter","3273 Jurklošter"]
[3301,"Petrovče","3301 Petrovče"]
[3302,"Griže","3302 Griže"]
[3303,"Gomilsko","3303 Gomilsko"]
[3304,"Tabor","3304 Tabor"]
[3305,"Vransko","3305 Vransko"]
[3310,"Žalec","3310 Žalec"]
[3311,"Šempeter v Savinjski dolini","3311 Šempeter v Savinjski dolini"]
[3312,"Prebold","3312 Prebold"]
[3313,"Polzela","3313 Polzela"]
[3314,"Braslovče","3314 Braslovče"]
[3320,"Velenje - dostava","3320 Velenje - dostava"]
[3322,"Velenje - poštni predali","3322 Velenje - poštni predali"]
[3325,"Šoštanj","3325 Šoštanj"]
[3326,"Topolšica","3326 Topolšica"]
[3327,"Šmartno ob Paki","3327 Šmartno ob Paki"]
[3330,"Mozirje","3330 Mozirje"]
[3331,"Nazarje","3331 Nazarje"]
[3332,"Rečica ob Savinji","3332 Rečica ob Savinji"]
[3333,"Ljubno ob Savinji","3333 Ljubno ob Savinji"]
[3334,"Luče","3334 Luče"]
[3335,"Solčava","3335 Solčava"]
[3341,"Šmartno ob Dreti","3341 Šmartno ob Dreti"]
[3342,"Gornji Grad","3342 Gornji Grad"]
[3502,"Celje","3502 Celje"]
[3503,"Velenje","3503 Velenje"]
[3504,"Velenje","3504 Velenje"]
[3505,"Celje","3505 Celje"]
[3600,"Celje","3600 Celje"]
[4000,"Kranj - dostava","4000 Kranj - dostava"]
[4001,"Kranj - poštni predali","4001 Kranj - poštni predali"]
[4201,"Zgornja Besnica","4201 Zgornja Besnica"]
[4202,"Naklo","4202 Naklo"]
[4203,"Duplje","4203 Duplje"]
[4204,"Golnik","4204 Golnik"]
[4205,"Preddvor","4205 Preddvor"]
[4206,"Zgornje Jezersko",{"$f":"A323&\" \"&B323","v":"4206 Zgornje Jezersko"}]
[4207,"Cerklje na Gorenjskem","4207 Cerklje na Gorenjskem"]
[4208,"Šenčur","4208 Šenčur"]
[4209,"Žabnica","4209 Žabnica"]
[4210,"Brnik - aerodrom","4210 Brnik - aerodrom"]
[4211,"Mavčiče","4211 Mavčiče"]
[4212,"Visoko","4212 Visoko"]
[4220,"Škofja Loka","4220 Škofja Loka"]
[4223,"Poljane nad Škofjo Loko","4223 Poljane nad Škofjo Loko"]
[4224,"Gorenja vas","4224 Gorenja vas"]
[4225,"Sovodenj","4225 Sovodenj"]
[4226,"Žiri","4226 Žiri"]
[4227,"Selca","4227 Selca"]
[4228,"Železniki","4228 Železniki"]
[4229,"Sorica","4229 Sorica"]
[4240,"Radovljica","4240 Radovljica"]
[4243,"Brezje","4243 Brezje"]
[4244,"Podnart","4244 Podnart"]
[4245,"Kropa","4245 Kropa"]
[4246,"Kamna Gorica","4246 Kamna Gorica"]
[4247,"Zgornje Gorje","4247 Zgornje Gorje"]
[4248,"Lesce","4248 Lesce"]
[4260,"Bled","4260 Bled"]
[4263,"Bohinjska Bela","4263 Bohinjska Bela"]
[4264,"Bohinjska Bistrica","4264 Bohinjska Bistrica"]
[4265,"Bohinjsko jezero","4265 Bohinjsko jezero"]
[4267,"Srednja vas v Bohinju","4267 Srednja vas v Bohinju"]
[4270,"Jesenice","4270 Jesenice"]
[4273,"Blejska Dobrava","4273 Blejska Dobrava"]
[4274,"Žirovnica","4274 Žirovnica"]
[4275,"Begunje na Gorenjskem","4275 Begunje na Gorenjskem"]
[4276,"Hrušica","4276 Hrušica"]
[4280,"Kranjska Gora","4280 Kranjska Gora"]
[4281,"Mojstrana","4281 Mojstrana"]
[4282,"Gozd Martuljek","4282 Gozd Martuljek"]
[4283,"Rateče - Planica","4283 Rateče - Planica"]
[4290,"Tržič","4290 Tržič"]
[4294,"Križe","4294 Križe"]
[4501,"Naklo","4501 Naklo"]
[4502,"Kranj","4502 Kranj"]
[4600,"Kranj","4600 Kranj"]
[5000,"Nova Gorica - dostava","5000 Nova Gorica - dostava"]
[5001,"Nova Gorica - poštni predali","5001 Nova Gorica - poštni predali"]
[5210,"Deskle","5210 Deskle"]
[5211,"Kojsko","5211 Kojsko"]
[5212,"Dobrovo v Brdih","5212 Dobrovo v Brdih"]
[5213,"Kanal","5213 Kanal"]
[5214,"Kal nad Kanalom","5214 Kal nad Kanalom"]
[5215,"Ročinj","5215 Ročinj"]
[5216,"Most na Soči","5216 Most na Soči"]
[5220,"Tolmin","5220 Tolmin"]
[5222,"Kobarid","5222 Kobarid"]
[5223,"Breginj","5223 Breginj"]
[5224,"Srpenica","5224 Srpenica"]
[5230,"Bovec","5230 Bovec"]
[5231,"Log pod Mangartom","5231 Log pod Mangartom"]
[5232,"Soča","5232 Soča"]
[5242,"Grahovo ob Bači","5242 Grahovo ob Bači"]
[5243,"Podbrdo","5243 Podbrdo"]
[5250,"Solkan","5250 Solkan"]
[5251,"Grgar","5251 Grgar"]
[5252,"Trnovo pri Gorici","5252 Trnovo pri Gorici"]
[5253,"Čepovan","5253 Čepovan"]
[5261,"Šempas","5261 Šempas"]
[5262,"Črniče",{"$f":"A387&\" \"&B387","v":"5262 Črniče"}]
[5263,"Dobravlje","5263 Dobravlje"]
[5270,"Ajdovščina","5270 Ajdovščina"]
[5271,"Vipava","5271 Vipava"]
[5272,"Podnanos","5272 Podnanos"]
[5273,"Col","5273 Col"]
[5274,"Črni Vrh nad Idrijo","5274 Črni Vrh nad Idrijo"]
[5275,"Godovič","5275 Godovič"]
[5280,"Idrija","5280 Idrija"]
[5281,"Spodnja Idrija","5281 Spodnja Idrija"]
[5282,"Cerkno","5282 Cerkno"]
[5283,"Slap ob Idrijci","5283 Slap ob Idrijci"]
[5290,"Šempeter pri Gorici","5290 Šempeter pri Gorici"]
[5291,"Miren","5291 Miren"]
[5292,"Renče","5292 Renče"]
[5293,"Volčja Draga","5293 Volčja Draga"]
[5294,"Dornberk","5294 Dornberk"]
[5295,"Branik","5295 Branik"]
[5296,"Kostanjevica na Krasu","5296 Kostanjevica na Krasu"]
[5297,"Prvačina","5297 Prvačina"]
[5600,"Nova Gorica","5600 Nova Gorica"]
[6000,"Koper - Capodistria - dostava","6000 Koper - Capodistria - dostava"]
[6001,"Koper - Capodistria - poštni predali","6001 Koper - Capodistria - poštni predali"]
[6210,"Sežana","6210 Sežana"]
[6215,"Divača","6215 Divača"]
[6216,"Podgorje","6216 Podgorje"]
[6217,"Vremski Britof","6217 Vremski Britof"]
[6219,"Lokev","6219 Lokev"]
[6221,"Dutovlje","6221 Dutovlje"]
[6222,"Štanjel","6222 Štanjel"]
[6223,"Komen","6223 Komen"]
[6224,"Senožeče","6224 Senožeče"]
[6225,"Hruševje","6225 Hruševje"]
[6230,"Postojna","6230 Postojna"]
[6232,"Planina","6232 Planina"]
[6240,"Kozina","6240 Kozina"]
[6242,"Materija","6242 Materija"]
[6243,"Obrov","6243 Obrov"]
[6244,"Podgrad","6244 Podgrad"]
[6250,"Ilirska Bistrica","6250 Ilirska Bistrica"]
[6253,"Knežak","6253 Knežak"]
[6254,"Jelšane","6254 Jelšane"]
[6255,"Prem","6255 Prem"]
[6256,"Košana","6256 Košana"]
[6257,"Pivka","6257 Pivka"]
[6258,"Prestranek","6258 Prestranek"]
[6271,"Dekani","6271 Dekani"]
[6272,"Gračišče","6272 Gračišče"]
[6273,"Marezige","6273 Marezige"]
[6274,"Šmarje","6274 Šmarje"]
[6275,"Črni Kal","6275 Črni Kal"]
[6276,"Pobegi","6276 Pobegi"]
[6280,"Ankaran - Ancarano","6280 Ankaran - Ancarano"]
[6281,"Škofije","6281 Škofije"]
[6310,"Izola - Isola","6310 Izola - Isola"]
[6320,"Portorož - Portorose","6320 Portorož - Portorose"]
[6323,"Strunjan - Strugnano (sezonska pošta)","6323 Strunjan - Strugnano (sezonska pošta)"]
[6330,"Piran - Pirano","6330 Piran - Pirano"]
[6333,"Sečovlje - Sicciole","6333 Sečovlje - Sicciole"]
[6501,"Koper","6501 Koper"]
[6502,"Koper","6502 Koper"]
[6503,"Koper","6503 Koper"]
[6504,"Koper","6504 Koper"]
[6505,"Koper","6505 Koper"]
[6600,"Koper",{"$f":"A451&\" \"&B451","v":"6600 Koper"}]
[8000,"Novo mesto - dostava","8000 Novo mesto - dostava"]
[8001,"Novo mesto - poštni predali","8001 Novo mesto - poštni predali"]
[8210,"Trebnje","8210 Trebnje"]
[8211,"Dobrnič","8211 Dobrnič"]
[8212,"Velika Loka","8212 Velika Loka"]
[8213,"Veliki Gaber","8213 Veliki Gaber"]
[8216,"Mirna Peč","8216 Mirna Peč"]
[8220,"Šmarješke Toplice","8220 Šmarješke Toplice"]
[8222,"Otočec","8222 Otočec"]
[8230,"Mokronog","8230 Mokronog"]
[8231,"Trebelno ","8231 Trebelno "]
[8232,"Šentrupert","8232 Šentrupert"]
[8233,"Mirna","8233 Mirna"]
[8250,"Brežice","8250 Brežice"]
[8251,"Čatež ob Savi","8251 Čatež ob Savi"]
[8253,"Artiče","8253 Artiče"]
[8254,"Globoko","8254 Globoko"]
[8255,"Pišece","8255 Pišece"]
[8256,"Sromlje ","8256 Sromlje "]
[8257,"Dobova","8257 Dobova"]
[8258,"Kapele","8258 Kapele"]
[8259,"Bizeljsko","8259 Bizeljsko"]
[8261,"Jesenice na Dolenjskem","8261 Jesenice na Dolenjskem"]
[8262,"Krška vas","8262 Krška vas"]
[8263,"Cerklje ob Krki","8263 Cerklje ob Krki"]
[8270,"Krško","8270 Krško"]
[8272,"Zdole ","8272 Zdole "]
[8273,"Leskovec pri Krškem","8273 Leskovec pri Krškem"]
[8274,"Raka","8274 Raka"]
[8275,"Škocjan","8275 Škocjan"]
[8276,"Bučka ","8276 Bučka "]
[8280,"Brestanica","8280 Brestanica"]
[8281,"Senovo","8281 Senovo"]
[8282,"Koprivnica","8282 Koprivnica"]
[8283,"Blanca","8283 Blanca"]
[8290,"Sevnica","8290 Sevnica"]
[8292,"Zabukovje ","8292 Zabukovje "]
[8293,"Studenec","8293 Studenec"]
[8294,"Boštanj","8294 Boštanj"]
[8295,"Tržišče","8295 Tržišče"]
[8296,"Krmelj","8296 Krmelj"]
[8297,"Šentjanž","8297 Šentjanž"]
[8310,"Šentjernej","8310 Šentjernej"]
[8311,"Kostanjevica na Krki","8311 Kostanjevica na Krki"]
[8312,"Podbočje","8312 Podbočje"]
[8321,"Brusnice","8321 Brusnice"]
[8322,"Stopiče","8322 Stopiče"]
[8323,"Uršna sela","8323 Uršna sela"]
[8330,"Metlika","8330 Metlika"]
[8331,"Suhor","8331 Suhor"]
[8332,"Gradac","8332 Gradac"]
[8333,"Semič","8333 Semič"]
[8340,"Črnomelj","8340 Črnomelj"]
[8341,"Adlešiči","8341 Adlešiči"]
[8342,"Stari trg ob Kolpi","8342 Stari trg ob Kolpi"]
[8343,"Dragatuš","8343 Dragatuš"]
[8344,"Vinica","8344 Vinica"]
[8350,"Dolenjske Toplice","8350 Dolenjske Toplice"]
[8351,"Straža","8351 Straža"]
[8360,"Žužemberk","8360 Žužemberk"]
[8361,"Dvor","8361 Dvor"]
[8362,"Hinje","8362 Hinje"]
[8501,"Novo mesto","8501 Novo mesto"]
[8600,"Novo mesto",{"$f":"A515&\" \"&B515","v":"8600 Novo mesto"}]
[9000,"Murska Sobota - dostava","9000 Murska Sobota - dostava"]
[9001,"Murska Sobota - poštni predali","9001 Murska Sobota - poštni predali"]
[9201,"Puconci","9201 Puconci"]
[9202,"Mačkovci","9202 Mačkovci"]
[9203,"Petrovci","9203 Petrovci"]
[9204,"Šalovci","9204 Šalovci"]
[9205,"Hodoš - Hodos","9205 Hodoš - Hodos"]
[9206,"Križevci","9206 Križevci"]
[9207,"Prosenjakovci - Partosfalva","9207 Prosenjakovci - Partosfalva"]
[9208,"Fokovci","9208 Fokovci"]
[9220,"Lendava - Lendva","9220 Lendava - Lendva"]
[9221,"Martjanci","9221 Martjanci"]
[9222,"Bogojina","9222 Bogojina"]
[9223,"Dobrovnik - Dobronak ","9223 Dobrovnik - Dobronak "]
[9224,"Turnišče","9224 Turnišče"]
[9225,"Velika Polana","9225 Velika Polana"]
[9226,"Moravske Toplice","9226 Moravske Toplice"]
[9227,"Kobilje","9227 Kobilje"]
[9231,"Beltinci","9231 Beltinci"]
[9232,"Črenšovci","9232 Črenšovci"]
[9233,"Odranci","9233 Odranci"]
[9240,"Ljutomer","9240 Ljutomer"]
[9241,"Veržej","9241 Veržej"]
[9242,"Križevci pri Ljutomeru","9242 Križevci pri Ljutomeru"]
[9243,"Mala Nedelja","9243 Mala Nedelja"]
[9244,"Sv. Jurij ob Ščavnici","9244 Sv. Jurij ob Ščavnici"]
[9245,"Spodnji Ivanjci","9245 Spodnji Ivanjci"]
[9250,"Gornja Radgona","9250 Gornja Radgona"]
[9251,"Tišina","9251 Tišina"]
[9252,"Radenci","9252 Radenci"]
[9253,"Apače","9253 Apače"]
[9261,"Cankova","9261 Cankova"]
[9262,"Rogašovci","9262 Rogašovci"]
[9263,"Kuzma","9263 Kuzma"]
[9264,"Grad","9264 Grad"]
[9265,"Bodonci","9265 Bodonci"]
[9501,"Murska Sobota","9501 Murska Sobota"]
[9502,"Radenci","9502 Radenci"]
[9600,"Murska Sobota","9600 Murska Sobota"]